[Event "Early-Titled-Tuesday-Blitz-April-02-2024"]
[Site "Chess.com"]
[Date "2024.04.02"]
[Round "3"]
[White "Rud_Makarian"]
[Black "Rodalquilar"]
[Result "1-0"]
[WhiteElo "3022"]
[BlackElo "2738"]
[TimeControl "180+1"]
[EndTime "8:30:32 PDT"]
[Termination "Rud_Makarian won by checkmate"]

1. d4 {[%clk 0:03:00.6]} 1... d5 {[%clk 0:03:00.2]} 2. c4 {[%clk 0:03:01.2]}
2... e6 {[%clk 0:03:00.4]} 3. Nf3 {[%clk 0:03:01.9]} 3... Nf6 {[%clk 0:03:00]}
4. g3 {[%clk 0:03:02.5]} 4... Be7 {[%clk 0:03:00.2]} 5. Bg2 {[%clk 0:03:03]}
5... O-O {[%clk 0:03:00.7]} 6. O-O {[%clk 0:03:03.7]} 6... dxc4 {[%clk
0:03:01.2]} 7. Qc2 {[%clk 0:03:04.5]} 7... a6 {[%clk 0:03:01.4]} 8. a4 {[%clk
0:03:05.1]} 8... Bd7 {[%clk 0:03:01.5]} 9. Qxc4 {[%clk 0:03:05.8]} 9... Bc6
{[%clk 0:03:02]} 10. Bg5 {[%clk 0:03:06.4]} 10... a5 {[%clk 0:03:02.2]} 11. Nc3
{[%clk 0:03:06.3]} 11... Ra6 {[%clk 0:03:02.6]} 12. Qd3 {[%clk 0:03:00.3]} 12...
Rb6 {[%clk 0:03:01.2]} 13. Qc2 {[%clk 0:03:00.7]} 13... Bd5 {[%clk 0:02:53.7]}
14. Nxd5 {[%clk 0:02:55]} 14... exd5 {[%clk 0:02:52.8]} 15. Ne5 {[%clk 0:02:52]}
15... Nc6 {[%clk 0:02:49]} 16. Nxc6 {[%clk 0:02:51.7]} 16... Rxc6 {[%clk
0:02:49.1]} 17. Qd3 {[%clk 0:02:36.8]} 17... Rb6 {[%clk 0:02:48]} 18. b3 {[%clk
0:02:36.9]} 18... Re8 {[%clk 0:02:44.4]} 19. Rac1 {[%clk 0:02:29.1]} 19... c6
{[%clk 0:02:37.6]} 20. Rc2 {[%clk 0:02:18.9]} 20... Ne4 {[%clk 0:02:32.8]} 21.
Bxe4 {[%clk 0:02:02.7]} 21... dxe4 {[%clk 0:02:31]} 22. Bxe7 {[%clk 0:02:03.4]}
22... exd3 {[%clk 0:02:17]} 23. Bxd8 {[%clk 0:02:02.8]} 23... Rxd8 {[%clk
0:02:17.6]} 24. Rc3 {[%clk 0:01:52]} 24... dxe2 {[%clk 0:02:07.1]} 25. Re1
{[%clk 0:01:52.2]} 25... Rxd4 {[%clk 0:01:58.3]} 26. Rxe2 {[%clk 0:01:52.3]}
26... Kf8 {[%clk 0:01:06.5]} 27. Kg2 {[%clk 0:01:47]} 27... Rbb4 {[%clk
0:01:02.9]} 28. Rce3 {[%clk 0:01:26.7]} 28... Rd8 {[%clk 0:01:02.7]} 29. Rc3
{[%clk 0:01:24.8]} 29... h6 {[%clk 0:00:54.5]} 30. h4 {[%clk 0:01:20.9]} 30...
Rd5 {[%clk 0:00:50.5]} 31. Rce3 {[%clk 0:01:18.8]} 31... g5 {[%clk 0:00:50.1]}
32. hxg5 {[%clk 0:01:13.6]} 32... hxg5 {[%clk 0:00:50.6]} 33. Rc3 {[%clk
0:01:12.1]} 33... Kg7 {[%clk 0:00:50.7]} 34. Kh3 {[%clk 0:01:08.8]} 34... g4+
{[%clk 0:00:47.6]} 35. Kh4 {[%clk 0:00:38.6]} 35... Kg6 {[%clk 0:00:46.4]} 36.
Rc4 {[%clk 0:00:38.9]} 36... Rxc4 {[%clk 0:00:39.2]} 37. bxc4 {[%clk 0:00:39.8]}
37... Rd4 {[%clk 0:00:38.9]} 38. Re5 {[%clk 0:00:31.1]} 38... Rxc4 {[%clk
0:00:20.4]} 39. Rg5+ {[%clk 0:00:31.3]} 39... Kf6 {[%clk 0:00:20.3]} 40. Rxa5
{[%clk 0:00:32.2]} 40... Ke6 {[%clk 0:00:15.1]} 41. Kg5 {[%clk 0:00:25.6]} 41...
b6 {[%clk 0:00:07.8]} 42. Ra6 {[%clk 0:00:24.2]} 42... Rb4 {[%clk 0:00:08.2]}
43. a5 {[%clk 0:00:22.9]} 43... Rb5+ {[%clk 0:00:05.6]} 44. Kxg4 {[%clk
0:00:21.7]} 44... Rxa5 {[%clk 0:00:03.5]} 45. Rxb6 {[%clk 0:00:22.1]} 45... Rc5
{[%clk 0:00:04.2]} 46. f4 {[%clk 0:00:18.8]} 46... Rc3 {[%clk 0:00:04]} 47. Rb8
{[%clk 0:00:19.1]} 47... f5+ {[%clk 0:00:03.8]} 48. Kh4 {[%clk 0:00:19.2]} 48...
c5 {[%clk 0:00:04.4]} 49. Rb6+ {[%clk 0:00:17.6]} 49... Kd5 {[%clk 0:00:03.6]}
50. Rf6 {[%clk 0:00:10.9]} 50... Ke4 {[%clk 0:00:03.8]} 51. Re6+ {[%clk
0:00:11.1]} 51... Kf3 {[%clk 0:00:02.6]} 52. Re5 {[%clk 0:00:11.6]} 52... Rc1
{[%clk 0:00:02.8]} 53. Rxf5 {[%clk 0:00:10.1]} 53... c4 {[%clk 0:00:03.4]} 54.
Rc5 {[%clk 0:00:09.6]} 54... c3 {[%clk 0:00:03.9]} 55. f5 {[%clk 0:00:09.5]}
55... Ke4 {[%clk 0:00:04.5]} 56. Kg5 {[%clk 0:00:09.3]} 56... Kd4 {[%clk
0:00:04.8]} 57. Rc8 {[%clk 0:00:09.6]} 57... Rg1 {[%clk 0:00:04.3]} 58. g4
{[%clk 0:00:09.8]} 58... Kd3 {[%clk 0:00:04.6]} 59. f6 {[%clk 0:00:10.1]} 59...
c2 {[%clk 0:00:05.2]} 60. Kf5 {[%clk 0:00:08.3]} 60... c1=Q {[%clk 0:00:05.1]}
61. Rxc1 {[%clk 0:00:08.2]} 61... Rxc1 {[%clk 0:00:06]} 62. g5 {[%clk
0:00:07.5]} 62... Rc5+ {[%clk 0:00:05.7]} 63. Ke6 {[%clk 0:00:06.7]} 63... Ke4
{[%clk 0:00:05.7]} 64. f7 {[%clk 0:00:05.1]} 64... Re5+ {[%clk 0:00:04.1]} 65.
Kd6 {[%clk 0:00:04.3]} 65... Rd5+ {[%clk 0:00:03.7]} 66. Ke7 {[%clk 0:00:03.2]}
66... Re5+ {[%clk 0:00:04]} 67. Kd7 {[%clk 0:00:02.8]} 67... Rd5+ {[%clk
0:00:04.1]} 68. Kc6 {[%clk 0:00:03.3]} 68... Rf5 {[%clk 0:00:01.8]} 69. g6
{[%clk 0:00:03.9]} 69... Ke5 {[%clk 0:00:01.7]} 70. g7 {[%clk 0:00:04.3]} 70...
Rf6+ {[%clk 0:00:01.8]} 71. Kc5 {[%clk 0:00:04.4]} 71... Rxf7 {[%clk 0:00:01.9]}
72. g8=Q {[%clk 0:00:05.1]} 72... Rf5 {[%clk 0:00:02.2]} 73. Kb4 {[%clk
0:00:05.5]} 73... Rf4+ {[%clk 0:00:02.1]} 74. Kc3 {[%clk 0:00:05.4]} 74... Rf5
{[%clk 0:00:02.4]} 75. Kd3 {[%clk 0:00:05.4]} 75... Rf3+ {[%clk 0:00:02.5]} 76.
Kc4 {[%clk 0:00:05.7]} 76... Rf5 {[%clk 0:00:03.4]} 77. Qg3+ {[%clk 0:00:04.6]}
77... Ke4 {[%clk 0:00:03]} 78. Qg6 {[%clk 0:00:04]} 78... Ke5 {[%clk 0:00:03.3]}
79. Qe8+ {[%clk 0:00:03.9]} 79... Kf4 {[%clk 0:00:03.5]} 80. Kd4 {[%clk
0:00:04.3]} 80... Kg5 {[%clk 0:00:04.1]} 81. Qg8+ {[%clk 0:00:04.4]} 81... Kf4
{[%clk 0:00:04.6]} 82. Qg2 {[%clk 0:00:03.8]} 82... Rg5 {[%clk 0:00:04.2]} 83.
Qf2+ {[%clk 0:00:04.4]} 83... Kg4 {[%clk 0:00:04.7]} 84. Ke4 {[%clk 0:00:05]}
84... Kh5 {[%clk 0:00:05]} 85. Qf7+ {[%clk 0:00:04.1]} 85... Kg4 {[%clk
0:00:05.1]} 86. Qf8 {[%clk 0:00:03.1]} 86... Kh5 {[%clk 0:00:04.7]} 87. Qh8+
{[%clk 0:00:02]} 87... Kg4 {[%clk 0:00:05.1]} 88. Qh7 {[%clk 0:00:02.5]} 88...
Kg3 {[%clk 0:00:04.9]} 89. Ke3 {[%clk 0:00:02.2]} 89... Kg4 {[%clk 0:00:05.3]}
90. Ke4 {[%clk 0:00:02.9]} 90... Kg3 {[%clk 0:00:05.7]} 91. Qh1 {[%clk
0:00:03.6]} 91... Kg4 {[%clk 0:00:06]} 92. Qh2 {[%clk 0:00:04.2]} 92... Rg6
{[%clk 0:00:05.7]} 93. Qg2+ {[%clk 0:00:04.3]} 93... Kh5 {[%clk 0:00:06.1]} 94.
Qh3+ {[%clk 0:00:04.9]} 94... Kg5 {[%clk 0:00:06.6]} 95. Qg3+ {[%clk 0:00:05.3]}
95... Kh5 {[%clk 0:00:07.1]} 96. Qh3+ {[%clk 0:00:04.8]} 96... Kg5 {[%clk
0:00:07.7]} 97. Ke5 {[%clk 0:00:05.5]} 97... Rh6 {[%clk 0:00:06.4]} 98. Qg3+
{[%clk 0:00:05.9]} 98... Kh5 {[%clk 0:00:06.7]} 99. Kf5 {[%clk 0:00:06.1]} 99...
Rf6+ {[%clk 0:00:03]} 100. Kxf6 {[%clk 0:00:05.4]} 100... Kh6 {[%clk 0:00:03.5]}
101. Qh3# {[%clk 0:00:06.3]} 1-0

[Event "Early-Titled-Tuesday-Blitz-April-02-2024"]
[Site "Chess.com"]
[Date "2024.04.02"]
[Round "3"]
[White "MagnusCarlsen"]
[Black "bascheyaro"]
[Result "1/2-1/2"]
[WhiteElo "3230"]
[BlackElo "2797"]
[TimeControl "180+1"]
[EndTime "8:30:52 PDT"]
[Termination "Game drawn - insufficient material"]

1. e4 {[%clk 0:02:59.9]} 1... e6 {[%clk 0:02:57.7]} 2. b3 {[%clk 0:02:58.4]}
2... d5 {[%clk 0:02:58]} 3. Bb2 {[%clk 0:02:58.9]} 3... Nf6 {[%clk 0:02:56.8]}
4. Nc3 {[%clk 0:02:51.4]} 4... dxe4 {[%clk 0:02:53.9]} 5. Qe2 {[%clk 0:02:50.9]}
5... Nbd7 {[%clk 0:02:53.5]} 6. O-O-O {[%clk 0:02:50.7]} 6... Bd6 {[%clk
0:02:50.9]} 7. g4 {[%clk 0:02:50.7]} 7... h6 {[%clk 0:02:49.7]} 8. h4 {[%clk
0:02:50.1]} 8... Qe7 {[%clk 0:02:49.5]} 9. Bg2 {[%clk 0:02:48.9]} 9... Ba3
{[%clk 0:02:49.2]} 10. g5 {[%clk 0:02:46.5]} 10... Nd5 {[%clk 0:02:46.3]} 11.
Nh3 {[%clk 0:02:40.7]} 11... N7b6 {[%clk 0:02:04.5]} 12. Qxe4 {[%clk 0:02:34.4]}
12... Bxb2+ {[%clk 0:02:00.1]} 13. Kxb2 {[%clk 0:02:34.3]} 13... Bd7 {[%clk
0:01:58.8]} 14. Nxd5 {[%clk 0:02:27.7]} 14... exd5 {[%clk 0:01:53.9]} 15. Qd4
{[%clk 0:02:27.7]} 15... O-O-O {[%clk 0:01:23.2]} 16. Qxg7 {[%clk 0:02:27.6]}
16... Rdg8 {[%clk 0:01:21.1]} 17. Qc3 {[%clk 0:02:25.9]} 17... hxg5 {[%clk
0:01:19.5]} 18. hxg5 {[%clk 0:02:25.2]} 18... Kb8 {[%clk 0:01:14.9]} 19. f4
{[%clk 0:02:16]} 19... Rh4 {[%clk 0:01:10.3]} 20. Rde1 {[%clk 0:02:07.8]} 20...
Qd6 {[%clk 0:01:10.5]} 21. Qg3 {[%clk 0:01:37.7]} 21... Bxh3 {[%clk 0:00:45.9]}
22. Rxh3 {[%clk 0:01:11.4]} 22... Rxf4 {[%clk 0:00:45.8]} 23. Rf1 {[%clk
0:01:08.4]} 23... Rxf1 {[%clk 0:00:43.4]} 24. Qxd6 {[%clk 0:01:08.2]} 24... cxd6
{[%clk 0:00:43.1]} 25. Bxf1 {[%clk 0:01:08.8]} 25... Rxg5 {[%clk 0:00:43.4]} 26.
Rf3 {[%clk 0:01:08.9]} 26... Rg7 {[%clk 0:00:42.8]} 27. a4 {[%clk 0:01:05.6]}
27... Kc7 {[%clk 0:00:42.7]} 28. Rf5 {[%clk 0:01:04.4]} 28... Kd7 {[%clk
0:00:31]} 29. a5 {[%clk 0:01:04.2]} 29... Na8 {[%clk 0:00:24.1]} 30. Rxd5 {[%clk
0:01:02.9]} 30... Nc7 {[%clk 0:00:24.5]} 31. Bh3+ {[%clk 0:01:00.4]} 31... Kc6
{[%clk 0:00:20.6]} 32. Rf5 {[%clk 0:00:59.4]} 32... b6 {[%clk 0:00:20.6]} 33.
Bf1 {[%clk 0:00:52.5]} 33... Nd5 {[%clk 0:00:17.3]} 34. Bc4 {[%clk 0:00:46.8]}
34... Ne7 {[%clk 0:00:16.9]} 35. Rh5 {[%clk 0:00:41.4]} 35... f5 {[%clk
0:00:16.8]} 36. a6 {[%clk 0:00:40]} 36... d5 {[%clk 0:00:16.7]} 37. Rh6+ {[%clk
0:00:39.2]} 37... Kc7 {[%clk 0:00:16.5]} 38. Bd3 {[%clk 0:00:38.2]} 38... Rf7
{[%clk 0:00:17.1]} 39. Be2 {[%clk 0:00:37]} 39... Nc6 {[%clk 0:00:17.4]} 40. Bf3
{[%clk 0:00:37]} 40... Nb4 {[%clk 0:00:15.4]} 41. Kc3 {[%clk 0:00:37.1]} 41...
Nxa6 {[%clk 0:00:15.2]} 42. Bxd5 {[%clk 0:00:37.6]} 42... Rd7 {[%clk 0:00:14.7]}
43. Be6 {[%clk 0:00:36.9]} 43... Re7 {[%clk 0:00:12]} 44. Bxf5 {[%clk
0:00:36.8]} 44... Nc5 {[%clk 0:00:12.5]} 45. d4 {[%clk 0:00:35.9]} 45... Nb7
{[%clk 0:00:12.9]} 46. Kd3 {[%clk 0:00:31.6]} 46... a5 {[%clk 0:00:12.7]} 47. c4
{[%clk 0:00:26.1]} 47... Nd6 {[%clk 0:00:13.1]} 48. Bg4 {[%clk 0:00:23.6]} 48...
Rg7 {[%clk 0:00:13.4]} 49. Rh4 {[%clk 0:00:23.5]} 49... Rf7 {[%clk 0:00:11.2]}
50. c5 {[%clk 0:00:19.8]} 50... bxc5 {[%clk 0:00:11.4]} 51. dxc5 {[%clk
0:00:20.7]} 51... Nb5 {[%clk 0:00:11.7]} 52. Kc4 {[%clk 0:00:19.2]} 52... Na3+
{[%clk 0:00:12]} 53. Kd5 {[%clk 0:00:19.5]} 53... Nb5 {[%clk 0:00:11.1]} 54. Be6
{[%clk 0:00:19.5]} 54... Rg7 {[%clk 0:00:10.9]} 55. Rh8 {[%clk 0:00:17.2]} 55...
Rg5+ {[%clk 0:00:10.6]} 56. Kc4 {[%clk 0:00:17.3]} 56... Na3+ {[%clk 0:00:11.1]}
57. Kd3 {[%clk 0:00:12.9]} 57... Rxc5 {[%clk 0:00:10.8]} 58. Rh6 {[%clk
0:00:12.8]} 58... Rc6 {[%clk 0:00:09.9]} 59. Rh7+ {[%clk 0:00:12.5]} 59... Kd6
{[%clk 0:00:10.5]} 60. Bf5 {[%clk 0:00:12.3]} 60... Kc5 {[%clk 0:00:10.8]} 61.
Be4 {[%clk 0:00:12.3]} 61... Re6 {[%clk 0:00:09.5]} 62. Rc7+ {[%clk 0:00:11.8]}
62... Kb4 {[%clk 0:00:08.3]} 63. Bd5 {[%clk 0:00:12]} 63... Rd6 {[%clk
0:00:07.4]} 64. Ke4 {[%clk 0:00:11.8]} 64... Nb5 {[%clk 0:00:07.1]} 65. Rb7
{[%clk 0:00:12]} 65... Kc5 {[%clk 0:00:07.2]} 66. Bg8 {[%clk 0:00:12.5]} 66...
Nc3+ {[%clk 0:00:07.2]} 67. Ke5 {[%clk 0:00:12.5]} 67... Rd1 {[%clk 0:00:07.1]}
68. Rb8 {[%clk 0:00:09]} 68... Nb5 {[%clk 0:00:07]} 69. Rc8+ {[%clk 0:00:08.8]}
69... Kb4 {[%clk 0:00:07.2]} 70. Rc4+ {[%clk 0:00:09]} 70... Ka3 {[%clk
0:00:07.3]} 71. Ra4+ {[%clk 0:00:09.3]} 71... Kb2 {[%clk 0:00:07.7]} 72. Rxa5
{[%clk 0:00:10.2]} 72... Nc3 {[%clk 0:00:07.6]} 73. Bc4 {[%clk 0:00:09.3]} 73...
Na2 {[%clk 0:00:07.3]} 74. Ra8 {[%clk 0:00:07.4]} 74... Nb4 {[%clk 0:00:07.6]}
75. Rh8 {[%clk 0:00:06.3]} 75... Kc3 {[%clk 0:00:07.9]} 76. Rh3+ {[%clk
0:00:06.4]} 76... Kb2 {[%clk 0:00:08.4]} 77. Ke6 {[%clk 0:00:07.3]} 77... Ka3
{[%clk 0:00:08.8]} 78. Rh5 {[%clk 0:00:07.2]} 78... Rd2 {[%clk 0:00:09.3]} 79.
Rh4 {[%clk 0:00:08.1]} 79... Rd1 {[%clk 0:00:09.4]} 80. Rh8 {[%clk 0:00:08.2]}
80... Rd2 {[%clk 0:00:10]} 81. Rb8 {[%clk 0:00:07.9]} 81... Rd1 {[%clk
0:00:09.7]} 82. Ra8+ {[%clk 0:00:07.8]} 82... Kb2 {[%clk 0:00:09.8]} 83. Ra7
{[%clk 0:00:08.5]} 83... Rd2 {[%clk 0:00:10]} 84. Rb7 {[%clk 0:00:06.7]} 84...
Ka3 {[%clk 0:00:10.4]} 85. Ke5 {[%clk 0:00:07.1]} 85... Rd1 {[%clk 0:00:09.6]}
86. Be6 {[%clk 0:00:07]} 86... Rd2 {[%clk 0:00:09.7]} 87. Ra7+ {[%clk
0:00:06.9]} 87... Kb2 {[%clk 0:00:09.9]} 88. Ra4 {[%clk 0:00:07.6]} 88... Kc3
{[%clk 0:00:10.4]} 89. Kf6 {[%clk 0:00:07.2]} 89... Rd6 {[%clk 0:00:10.1]} 90.
Ke5 {[%clk 0:00:07.1]} 90... Ra6 {[%clk 0:00:10.2]} 91. Bf7 {[%clk 0:00:05.2]}
91... Rxa4 {[%clk 0:00:06.3]} 92. bxa4 {[%clk 0:00:06.1]} 92... Nd3+ {[%clk
0:00:06.7]} 93. Kd6 {[%clk 0:00:05.8]} 93... Kb4 {[%clk 0:00:07.6]} 94. Be8
{[%clk 0:00:05.8]} 94... Nc5 {[%clk 0:00:07.4]} 95. Kd5 {[%clk 0:00:05.5]} 95...
Nxa4 {[%clk 0:00:07.8]} 1/2-1/2

[Event "Early-Titled-Tuesday-Blitz-April-02-2024"]
[Site "Chess.com"]
[Date "2024.04.02"]
[Round "4"]
[White "Larina_Maria"]
[Black "KINGOF2SOAP"]
[Result "1-0"]
[WhiteElo "2324"]
[BlackElo "2503"]
[TimeControl "180+1"]
[EndTime "8:32:31 PDT"]
[Termination "Larina_Maria won by resignation"]

1. e4 {[%clk 0:03:00.9]} 1... Nc6 {[%clk 0:02:57.3]} 2. Nf3 {[%clk 0:03:00.3]}
2... d5 {[%clk 0:02:55.2]} 3. exd5 {[%clk 0:03:01.2]} 3... Qxd5 {[%clk
0:02:56.1]} 4. Nc3 {[%clk 0:03:01.2]} 4... Qa5 {[%clk 0:02:56.2]} 5. g3 {[%clk
0:02:59.8]} 5... f6 {[%clk 0:02:56.2]} 6. Bg2 {[%clk 0:02:59.9]} 6... e5 {[%clk
0:02:56.3]} 7. d3 {[%clk 0:02:59.3]} 7... Be7 {[%clk 0:02:56.8]} 8. O-O {[%clk
0:02:59.2]} 8... Bd7 {[%clk 0:02:56.3]} 9. Bd2 {[%clk 0:02:58]} 9... Qb6 {[%clk
0:02:55.3]} 10. Nd5 {[%clk 0:02:58]} 10... Qa6 {[%clk 0:02:46.5]} 11. Nxc7+
{[%clk 0:02:57.3]} 1-0

[Event "Early-Titled-Tuesday-Blitz-April-02-2024"]
[Site "Chess.com"]
[Date "2024.04.02"]
[Round "4"]
[White "FGHSMN"]
[Black "LileKoridze"]
[Result "1-0"]
[WhiteElo "2908"]
[BlackElo "2428"]
[TimeControl "180+1"]
[EndTime "8:33:14 PDT"]
[Termination "FGHSMN won by resignation"]

1. d4 {[%clk 0:03:00.9]} 1... Nf6 {[%clk 0:02:59.9]} 2. Bf4 {[%clk 0:03:01.4]}
2... e6 {[%clk 0:02:58.4]} 3. e3 {[%clk 0:03:01.5]} 3... c5 {[%clk 0:02:56]} 4.
Nf3 {[%clk 0:03:00.9]} 4... b6 {[%clk 0:02:56.4]} 5. Nc3 {[%clk 0:02:58.6]} 5...
Bb7 {[%clk 0:02:56.7]} 6. Nb5 {[%clk 0:02:58]} 6... d6 {[%clk 0:02:55.1]} 7.
dxc5 {[%clk 0:02:58.1]} 7... e5 {[%clk 0:02:52.2]} 8. cxd6 {[%clk 0:02:52.3]}
8... Na6 {[%clk 0:02:48.6]} 9. Nxe5 {[%clk 0:02:47]} 9... g6 {[%clk 0:02:42.2]}
10. Bc4 {[%clk 0:02:44.5]} 10... Bg7 {[%clk 0:02:37.6]} 11. Nxf7 {[%clk
0:02:38.4]} 11... Qd7 {[%clk 0:02:38.1]} 12. Ne5 {[%clk 0:02:32.2]} 12... Qf5
{[%clk 0:02:35.7]} 13. d7+ {[%clk 0:02:31.9]} 13... Nxd7 {[%clk 0:02:35.1]} 14.
Nd6+ {[%clk 0:02:32.5]} 1-0

[Event "Early-Titled-Tuesday-Blitz-April-02-2024"]
[Site "Chess.com"]
[Date "2024.04.02"]
[Round "4"]
[White "N_I_Chess"]
[Black "KubaGepard"]
[Result "0-1"]
[WhiteElo "2372"]
[BlackElo "2572"]
[TimeControl "180+1"]
[EndTime "8:34:44 PDT"]
[Termination "KubaGepard won by checkmate"]

1. d4 {[%clk 0:03:00.9]} 1... d5 {[%clk 0:02:42.6]} 2. c4 {[%clk 0:03:00.7]}
2... dxc4 {[%clk 0:02:43.5]} 3. Nf3 {[%clk 0:02:59.3]} 3... Nf6 {[%clk
0:02:43.8]} 4. a4 {[%clk 0:02:59]} 4... Nc6 {[%clk 0:02:39.1]} 5. Nc3 {[%clk
0:02:57]} 5... e6 {[%clk 0:02:38.2]} 6. e3 {[%clk 0:02:51.7]} 6... Na5 {[%clk
0:02:36.8]} 7. e4 {[%clk 0:02:47.5]} 7... Bb4 {[%clk 0:02:34.4]} 8. Qc2 {[%clk
0:02:43.4]} 8... Nb3 {[%clk 0:02:26.4]} 9. Rb1 {[%clk 0:02:42.5]} 9... Nxd4
{[%clk 0:02:24.7]} 10. Nxd4 {[%clk 0:02:40.8]} 10... Qxd4 {[%clk 0:02:25.6]} 11.
Bd2 {[%clk 0:02:33.8]} 11... b6 {[%clk 0:02:12.5]} 12. Be2 {[%clk 0:02:31.9]}
12... Bb7 {[%clk 0:02:02.2]} 13. O-O {[%clk 0:02:20.2]} 13... Bxc3 {[%clk
0:01:55.9]} 14. Bxc3 {[%clk 0:02:13.9]} 14... Qxe4 {[%clk 0:01:54.4]} 15. Qd2
{[%clk 0:01:47.7]} 15... Qxg2# {[%clk 0:01:49.9]} 0-1

[Event "Early-Titled-Tuesday-Blitz-April-02-2024"]
[Site "Chess.com"]
[Date "2024.04.02"]
[Round "4"]
[White "GiorgianBarbosa"]
[Black "FMStan15"]
[Result "1-0"]
[WhiteElo "2478"]
[BlackElo "2116"]
[TimeControl "180+1"]
[EndTime "8:35:18 PDT"]
[Termination "GiorgianBarbosa won by resignation"]

1. d4 {[%clk 0:02:59.9]} 1... Nf6 {[%clk 0:02:56.9]} 2. Bg5 {[%clk 0:02:59.4]}
2... h6 {[%clk 0:02:53.5]} 3. Bxf6 {[%clk 0:02:59.3]} 3... exf6 {[%clk
0:02:53.7]} 4. e3 {[%clk 0:03:00.2]} 4... g6 {[%clk 0:02:54]} 5. g3 {[%clk
0:03:01.1]} 5... f5 {[%clk 0:02:54.4]} 6. Bg2 {[%clk 0:03:01.9]} 6... Bg7 {[%clk
0:02:54.8]} 7. Ne2 {[%clk 0:03:02.8]} 7... O-O {[%clk 0:02:55]} 8. O-O {[%clk
0:03:03.7]} 8... d5 {[%clk 0:02:53.2]} 9. b3 {[%clk 0:03:02.1]} 9... c6 {[%clk
0:02:53.6]} 10. c4 {[%clk 0:03:02]} 10... dxc4 {[%clk 0:02:53.5]} 11. bxc4
{[%clk 0:03:01.5]} 11... Nd7 {[%clk 0:02:53.8]} 12. Nbc3 {[%clk 0:03:02]} 12...
Nf6 {[%clk 0:02:54]} 13. Rb1 {[%clk 0:03:02.6]} 13... Qe7 {[%clk 0:02:51.7]} 14.
Qa4 {[%clk 0:03:01.6]} 14... Rd8 {[%clk 0:02:51.1]} 15. c5 {[%clk 0:03:00.7]}
15... Nd5 {[%clk 0:02:49]} 16. Nxd5 {[%clk 0:03:00.4]} 16... cxd5 {[%clk
0:02:49.3]} 17. Nc3 {[%clk 0:03:00.5]} 17... Be6 {[%clk 0:02:49.4]} 18. Qb3
{[%clk 0:02:59.5]} 18... Rab8 {[%clk 0:02:48.1]} 19. Rb2 {[%clk 0:02:26.6]}
19... b6 {[%clk 0:02:47.3]} 20. cxb6 {[%clk 0:02:15.4]} 20... Rxb6 {[%clk
0:02:46.5]} 21. Qc2 {[%clk 0:02:15.3]} 21... Rdb8 {[%clk 0:02:42.9]} 22. Rfb1
{[%clk 0:02:13.3]} 22... Rxb2 {[%clk 0:02:41.9]} 23. Rxb2 {[%clk 0:02:14.2]}
23... Rxb2 {[%clk 0:02:40.4]} 24. Qxb2 {[%clk 0:02:15.1]} 24... Qd6 {[%clk
0:02:38.9]} 25. Qb3 {[%clk 0:02:15.1]} 25... Qa6 {[%clk 0:02:32.7]} 26. Bxd5
{[%clk 0:02:13.3]} 26... Bxd5 {[%clk 0:02:27.6]} 27. Nxd5 {[%clk 0:02:14.2]}
27... Kh7 {[%clk 0:02:25.2]} 28. Nf4 {[%clk 0:02:12.1]} 28... Qc6 {[%clk
0:02:17.1]} 29. Qxf7 {[%clk 0:02:09.2]} 29... a5 {[%clk 0:01:57.9]} 30. h4
{[%clk 0:02:03]} 30... h5 {[%clk 0:01:57.1]} 31. Ne6 {[%clk 0:02:00.1]} 31...
Qc1+ {[%clk 0:01:54.4]} 32. Kh2 {[%clk 0:01:59.2]} 1-0

[Event "Early-Titled-Tuesday-Blitz-April-02-2024"]
[Site "Chess.com"]
[Date "2024.04.02"]
[Round "4"]
[White "newauto"]
[Black "ylr5000"]
[Result "0-1"]
[WhiteElo "2202"]
[BlackElo "2465"]
[TimeControl "180+1"]
[EndTime "8:35:25 PDT"]
[Termination "ylr5000 won by resignation"]

1. d4 {[%clk 0:03:00.9]} 1... d5 {[%clk 0:02:59.7]} 2. Nf3 {[%clk 0:03:01.3]}
2... Nf6 {[%clk 0:02:58.9]} 3. Bg5 {[%clk 0:03:01.7]} 3... Ne4 {[%clk
0:02:58.6]} 4. Bh4 {[%clk 0:03:01.7]} 4... Bf5 {[%clk 0:02:56.2]} 5. Nbd2 {[%clk
0:03:01.2]} 5... c6 {[%clk 0:02:56.4]} 6. Nxe4 {[%clk 0:02:59]} 6... Bxe4 {[%clk
0:02:55.7]} 7. e3 {[%clk 0:02:59.4]} 7... Qb6 {[%clk 0:02:54.9]} 8. Bd3 {[%clk
0:02:52.6]} 8... Bxd3 {[%clk 0:02:47.7]} 9. Qxd3 {[%clk 0:02:48.5]} 9... e6
{[%clk 0:02:47.2]} 10. O-O {[%clk 0:02:48]} 10... Nd7 {[%clk 0:02:47.6]} 11. c4
{[%clk 0:02:47.8]} 11... Qa6 {[%clk 0:02:45.8]} 12. Qc2 {[%clk 0:02:41.9]} 12...
Qxc4 {[%clk 0:02:43.9]} 13. Rfc1 {[%clk 0:02:41.4]} 13... Qxc2 {[%clk
0:02:43.4]} 14. Rxc2 {[%clk 0:02:42.3]} 14... Bd6 {[%clk 0:02:43.2]} 15. Rb1
{[%clk 0:02:41.8]} 15... a5 {[%clk 0:02:36.1]} 16. a3 {[%clk 0:02:41.5]} 16...
a4 {[%clk 0:02:31.2]} 17. b4 {[%clk 0:02:39.8]} 17... axb3 {[%clk 0:02:28]} 18.
Rxb3 {[%clk 0:02:40]} 18... Ra7 {[%clk 0:02:28.4]} 19. Bg3 {[%clk 0:02:35.8]}
19... Bxg3 {[%clk 0:02:27.2]} 20. hxg3 {[%clk 0:02:35.8]} 20... Ke7 {[%clk
0:02:23.2]} 21. Rcb2 {[%clk 0:02:32.6]} 21... Rb8 {[%clk 0:02:21.5]} 22. Ne5
{[%clk 0:02:29.3]} 22... Nxe5 {[%clk 0:02:20.8]} 23. dxe5 {[%clk 0:02:30.2]}
23... Kd7 {[%clk 0:02:20.6]} 24. Rb6 {[%clk 0:02:27.4]} 24... Kc7 {[%clk
0:02:19.9]} 25. R2b3 {[%clk 0:02:25.3]} 25... h5 {[%clk 0:02:14.5]} 26. Kh2
{[%clk 0:02:24.3]} 26... Rxa3 {[%clk 0:02:04.8]} 27. Rxc6+ {[%clk 0:02:23.2]}
27... Kxc6 {[%clk 0:01:55.1]} 28. Rxa3 {[%clk 0:02:22.6]} 28... b5 {[%clk
0:01:55.4]} 29. Kh3 {[%clk 0:02:17.4]} 29... b4 {[%clk 0:01:55.3]} 30. Rb3
{[%clk 0:02:17.5]} 30... Kc5 {[%clk 0:01:55.4]} 31. Kh4 {[%clk 0:02:18.1]} 31...
Kc4 {[%clk 0:01:55.5]} 32. Rb1 {[%clk 0:02:19]} 32... b3 {[%clk 0:01:54.7]} 33.
Kxh5 {[%clk 0:02:18.9]} 33... b2 {[%clk 0:01:55]} 34. g4 {[%clk 0:02:17.8]}
34... Kc3 {[%clk 0:01:54.5]} 35. g5 {[%clk 0:02:18.7]} 35... Rh8+ {[%clk
0:01:54.4]} 36. Kg4 {[%clk 0:02:18.5]} 36... Kc2 {[%clk 0:01:51.4]} 37. Rg1
{[%clk 0:02:17.8]} 37... g6 {[%clk 0:01:49.9]} 0-1